fUSD/lending_fUSD_20260515
["ID","MTS","AMOUNT","RATE_DAILY","PERIOD"]
[422336818,1778844643000,-407.0,0.0001725,2]
[422336813,1778844643000,-406.0,0.00017236,2]
[422336819,1778844643000,-406.0,0.0001725,2]
[422336829,1778844643000,-407.0,0.00017283,2]
[422336821,1778844643000,-407.0,0.0001726,2]
[422336824,1778844643000,-407.0,0.00017262,2]
[422336816,1778844643000,-407.0,0.00017244,2]
[422336820,1778844643000,-407.0,0.00017251,2]
[422336823,1778844643000,-407.0,0.00017262,2]
[422336836,1778844643000,-646.65982734,0.00017299,2]
[422336827,1778844643000,-407.0,0.00017268,2]
[422336831,1778844643000,-407.0,0.00017284,2]
[422336835,1778844643000,-151.0,0.00017299,2]
[422336832,1778844643000,-407.0,0.00017292,2]
[422336833,1778844643000,-578.20924308,0.00017299,2]
[422336843,1778844643000,-224.81937044,0.00017299,2]
[422336842,1778844643000,-151.0,0.00017299,2]
[422336834,1778844643000,-500.0,0.00017299,2]
[422336837,1778844643000,-151.0,0.00017299,2]
[422336839,1778844643000,-151.0,0.00017299,2]
[422336841,1778844643000,-151.0,0.00017299,2]
[422336812,1778844643000,-407.0,0.00017234,2]
[422336840,1778844643000,-151.0,0.00017299,2]
[422336828,1778844643000,-407.0,0.00017272,2]
[422336811,1778844643000,-407.0,0.00017223,2]
[422336790,1778844643000,-407.0,0.00017143,2]
[422336817,1778844643000,-407.0,0.00017248,2]
[422336838,1778844643000,-200.0,0.00017299,2]
[422336785,1778844643000,-2000.0,0.00017033,2]
[422336787,1778844643000,-315.10850841,0.00017131,2]
[422336786,1778844643000,-407.0,0.00017117,2]
[422336793,1778844643000,-407.0,0.0001715,2]
[422336788,1778844643000,-407.0,0.00017135,2]
[422336789,1778844643000,-407.0,0.00017139,2]
[422336791,1778844643000,-407.0,0.00017147,2]
[422336784,1778844643000,-495.92,0.00017,2]
[422336792,1778844643000,-407.0,0.00017147,2]
[422336795,1778844643000,-199.90217242,0.00017169,2]
[422336800,1778844643000,-407.0,0.00017184,2]
[422336797,1778844643000,-407.0,0.00017171,2]
[422336810,1778844643000,-407.0,0.00017222,2]
[422336794,1778844643000,-407.0,0.00017158,2]
[422336796,1778844643000,-239.8826069,0.00017169,2]
[422336798,1778844643000,-407.0,0.00017174,2]
[422336804,1778844643000,-407.0,0.00017198,2]
[422336799,1778844643000,-407.0,0.00017183,2]
[422336802,1778844643000,-407.0,0.00017186,2]
[422336803,1778844643000,-407.0,0.00017188,2]
[422336805,1778844643000,-407.0,0.000172,2]
[422336807,1778844643000,-407.0,0.00017209,2]
[422336808,1778844643000,-239.01752588,0.0001721,2]
[422336814,1778844643000,-407.0,0.0001724,2]
[422336809,1778844643000,-407.0,0.00017217,2]
[422336806,1778844643000,-407.0,0.00017204,2]
[422336815,1778844643000,-407.0,0.00017243,2]
[422336801,1778844643000,-407.0,0.00017185,2]
[422336845,1778844643000,-500.0,0.00017299,2]
[422336884,1778844643000,-407.0,0.00017327,2]
[422336847,1778844643000,-151.0,0.00017299,2]
[422336876,1778844643000,-151.0,0.00017299,2]
[422336874,1778844643000,-151.0,0.00017299,2]
[422336881,1778844643000,-409.0,0.00017312,2]
[422336883,1778844643000,-407.0,0.00017319,2]
[422336893,1778844643000,-407.0,0.00017371,2]
[422336890,1778844643000,-407.0,0.00017369,2]
[422336891,1778844643000,-500.0,0.0001737,2]
[422336882,1778844643000,-407.0,0.00017315,2]
[422336892,1778844643000,-407.0,0.0001737,2]
[422336885,1778844643000,-407.0,0.00017333,2]
[422336887,1778844643000,-407.0,0.00017341,2]
[422336886,1778844643000,-407.0,0.00017338,2]
[422336888,1778844643000,-407.0,0.00017346,2]
[422336889,1778844643000,-151.0,0.00017354,2]
[422336895,1778844643000,-407.0,0.00017372,2]
[422336904,1778844643000,-151.0,0.00017409,2]
[422336899,1778844643000,-407.0,0.00017388,2]
[422336894,1778844643000,-407.0,0.00017372,2]
[422336897,1778844643000,-407.0,0.00017377,2]
[422336903,1778844643000,-407.0,0.00017407,2]
[422336902,1778844643000,-407.0,0.00017394,2]
[422336898,1778844643000,-407.0,0.00017378,2]
[422336905,1778844643000,-174.55,0.0001741,2]
[422336901,1778844643000,-407.0,0.00017393,2]
[422336900,1778844643000,-407.0,0.00017389,2]
[422336907,1778844643000,-151.0,0.00017464,2]
[422336896,1778844643000,-407.0,0.00017374,2]
[422336878,1778844643000,-407.0,0.00017309,2]
[422336871,1778844643000,-151.0,0.00017299,2]
[422336844,1778844643000,-151.0,0.00017299,2]
[422336872,1778844643000,-151.0,0.00017299,2]
[422336875,1778844643000,-151.0,0.00017299,2]
[422336855,1778844643000,-151.0,0.00017299,2]
[422336846,1778844643000,-215.31159594,0.00017299,2]
[422336849,1778844643000,-1865.36488657,0.00017299,2]
[422336851,1778844643000,-151.0,0.00017299,2]
[422336850,1778844643000,-187.78006525,0.00017299,2]
[422336854,1778844643000,-151.0,0.00017299,2]
[422336852,1778844643000,-151.0,0.00017299,2]
[422336853,1778844643000,-151.0,0.00017299,2]
[422336857,1778844643000,-152.0,0.00017299,2]
[422336856,1778844643000,-151.0,0.00017299,2]
[422336859,1778844643000,-236.30505236,0.00017299,2]
[422336860,1778844643000,-151.0,0.00017299,2]
[422336861,1778844643000,-174.61919141,0.00017299,2]
[422336848,1778844643000,-151.0,0.00017299,2]
[422336862,1778844643000,-151.0,0.00017299,2]
[422336873,1778844643000,-151.0,0.00017299,2]
[422336867,1778844643000,-151.0,0.00017299,2]
[422336870,1778844643000,-348.69445272,0.00017299,2]
[422336868,1778844643000,-1000.0,0.00017299,2]
[422336880,1778844643000,-407.0,0.00017311,2]
[422336879,1778844643000,-407.0,0.00017309,2]
[422336877,1778844643000,-407.0,0.00017306,2]
[422336865,1778844643000,-151.0,0.00017299,2]
[422336866,1778844643000,-1000.0,0.00017299,2]
[422336858,1778844643000,-151.0,0.00017299,2]
[422336864,1778844643000,-1000.0,0.00017299,2]
[422336863,1778844643000,-151.0,0.00017299,2]
[422336869,1778844643000,-151.0,0.00017299,2]
[422336946,1778844644000,-187.78006525,0.00018395,2]
[422336942,1778844644000,-150.0,0.00018224,2]
[422336944,1778844644000,-2005.9555727,0.00018395,2]
[422336943,1778844644000,-200.0,0.00018395,2]
[422336941,1778844644000,-150.716,0.00018224,2]
[422336939,1778844644000,-242.781,0.00018224,2]
[422336938,1778844644000,-250.0,0.00018224,2]
[422336956,1778844644000,-2087.84036619,0.00018942,2]
[422336937,1778844644000,-165.885,0.00018224,2]
[422336940,1778844644000,-150.833,0.00018224,2]
[422336957,1778844644000,-200.0,0.00018943,2]
[422336952,1778844644000,-2000.0,0.00018737,2]
[422336950,1778844644000,-495.92,0.000186,2]
[422336948,1778844644000,-165.08249547,0.000184,2]
[422336949,1778844644000,-1928.3,0.0001841,2]
[422336951,1778844644000,-588.0,0.00018675,2]
[422336954,1778844644000,-758.0,0.00018868,2]
[422336953,1778844644000,-598.34116443,0.00018778,2]
[422336955,1778844644000,-500.0,0.00018932,2]
[422336958,1778844644000,-2080.17592889,0.00018943,2]
[422336963,1778844644000,-300.0,0.00018999,2]
[422336936,1778844644000,-150.116,0.00018224,2]
[422336945,1778844644000,-173.83958618,0.00018395,2]
[422336935,1778844644000,-150.0,0.00018224,2]
[422336918,1778844644000,-151.0,0.00017794,2]
[422336931,1778844644000,-350.0,0.00018,2]
[422336911,1778844644000,-151.0,0.00017574,2]
[422336912,1778844644000,-151.0,0.00017629,2]
[422336913,1778844644000,-151.0,0.00017684,2]
[422336917,1778844644000,-151.0,0.00017739,2]
[422336920,1778844644000,-1934.38338737,0.00017847,2]
[422336916,1778844644000,-9999.99,0.00017728,2]
[422336919,1778844644000,-200.0,0.00017847,2]
[422336921,1778844644000,-194.72792766,0.00017847,2]
[422336915,1778844644000,-3622.93,0.00017728,2]
[422336909,1778844644000,-151.0,0.00017519,2]
[422336914,1778844644000,-403.0,0.000177,5]
[422336959,1778844644000,-194.72792766,0.00018943,2]
[422336923,1778844644000,-151.0,0.00017847,2]
[422336933,1778844644000,-165.08249547,0.000182,2]
[422336922,1778844644000,-181.08010149,0.00017847,2]
[422336924,1778844644000,-151.0,0.00017849,2]
[422336928,1778844644000,-151.0,0.00017904,2]
[422336932,1778844644000,-151.0,0.00018014,2]
[422336929,1778844644000,-151.0,0.00017959,2]
[422336926,1778844644000,-1000.0,0.000179,2]
[422336930,1778844644000,-165.08249547,0.00018,2]
[422336927,1778844644000,-314.0,0.000179,2]
[422336925,1778844644000,-308.0,0.000179,2]
[422336934,1778844644000,-174.08,0.00018224,2]
[422336960,1778844644000,-235.39597937,0.00018943,2]
[422336947,1778844644000,-151.0,0.00018395,2]
[422336967,1778844644000,-160.28,0.00019066,2]
[422336990,1778844644000,-985.0,0.0002,2]
[422336988,1778844644000,-845.0,0.0002,2]
[422336995,1778844644000,-1452.0,0.0002,2]
[422337005,1778844644000,-300.0,0.000201,10]
[422336994,1778844644000,-308.0,0.0002,2]
[422336996,1778844644000,-367.0,0.0002,2]
[422336999,1778844644000,-153.68370957,0.0002,20]
[422336997,1778844644000,-200.0,0.0002,10]
[422336998,1778844644000,-15879.41,0.0002,2]
[422337000,1778844644000,-599.60298507,0.00020038,2]
[422337003,1778844644000,-2236.95670848,0.00020039,2]
[422337002,1778844644000,-200.0,0.00020039,2]
[422337001,1778844644000,-670.58624095,0.00020038,2]
[422337004,1778844644000,-251.40472791,0.00020039,2]
[422337006,1778844644000,-964.0,0.00020125,7]
[422337010,1778844644000,-500.0,0.00020547,2]
[422337007,1778844644000,-1928.3,0.00020381,2]
[422337008,1778844644000,-2000.0,0.0002044,2]
[422337009,1778844644000,-300.0,0.00020547,2]
[422337011,1778844644000,-500.0,0.00020547,3]
[422337012,1778844644000,-500.0,0.00020547,4]
[422337013,1778844644000,-13621.38290509,0.00020548,2]
[422336966,1778844644000,-131712.56259193,0.00019,2]
[422336991,1778844644000,-2266.0,0.0002,2]
[422336989,1778844644000,-400.0,0.0002,2]
[422336965,1778844644000,-548.7355334,0.00019,2]
[422336987,1778844644000,-4333.0,0.0002,2]
[422336993,1778844644000,-979.0,0.0002,2]
[422336964,1778844644000,-3238.95483576,0.00019,2]
[422336961,1778844644000,-300.0,0.00018999,2]
[422336962,1778844644000,-300.0,0.00018999,2]
[422336970,1778844644000,-315.10850841,0.00019367,2]
[422336978,1778844644000,-3542.0,0.00019738,2]
[422336980,1778844644000,-1980.0,0.0002,2]
[422336979,1778844644000,-300.0,0.00019999,2]
[422336972,1778844644000,-2157.14243826,0.00019491,2]
[422336973,1778844644000,-201.93286099,0.00019491,2]
[422336971,1778844644000,-200.0,0.00019491,2]
[422336968,1778844644000,-935.0,0.00019084,2]
[422336974,1778844644000,-294.5220946,0.00019726,2]
[422336969,1778844644000,-2401.0,0.00019135,5]
[422336985,1778844644000,-441.0,0.0002,2]
[422336992,1778844644000,-1192.0,0.0002,2]
[422336984,1778844644000,-190.0,0.0002,2]
[422336986,1778844644000,-4524.0,0.0002,2]
[422336982,1778844644000,-310.19961027,0.0002,30]
[422336981,1778844644000,-200.0,0.0002,10]
[422336976,1778844644000,-1223.0,0.00019738,2]
[422336977,1778844644000,-625.0,0.00019738,2]
[422336975,1778844644000,-1270.0,0.00019738,2]
[422336983,1778844644000,-880.0,0.0002,2]
[422337037,1778844645000,-367.0,0.00021,2]
[422337040,1778844645000,-10000.0,0.00021,2]
[422337041,1778844645000,-296.4,0.00021,2]
[422337045,1778844645000,-2405.55389864,0.00021135,2]
[422337046,1778844645000,-150.0,0.00021224,2]
[422337044,1778844645000,-200.0,0.00021135,2]
[422337049,1778844645000,-150.0,0.00021224,2]
[422337048,1778844645000,-150.0,0.00021224,2]
[422337054,1778844645000,-200.0,0.00021683,2]
[422337059,1778844645000,-150.0,0.00021918,2]
[422337055,1778844645000,-2494.55939289,0.00021683,2]
[422337051,1778844645000,-6462.31,0.0002137,2]
[422337050,1778844645000,-150.0,0.00021224,2]
[422337052,1778844645000,-315.10850841,0.00021604,2]
[422337053,1778844645000,-500.0,0.00021616,2]
[422337056,1778844645000,-15879.41,0.00021916,2]
[422337057,1778844645000,-3074.41,0.00021918,2]
[422337060,1778844645000,-2023.22560145,0.00022,2]
[422337062,1778844645000,-880.0,0.00022,2]
[422337064,1778844645000,-441.0,0.00022,2]
[422337039,1778844645000,-1067.2,0.00021,2]
[422337063,1778844645000,-190.0,0.00022,2]
[422337058,1778844645000,-5000.0,0.00021918,2]
[422337038,1778844645000,-525.11493027,0.00021,2]
[422337026,1778844645000,-190.0,0.00021,2]
[422337043,1778844645000,-6000.0,0.00021,2]
[422337061,1778844645000,-117920.28447772,0.00022,4]
[422337016,1778844645000,-676.05694954,0.00020548,2]
[422337015,1778844645000,-2095.70793257,0.00020548,2]
[422337017,1778844645000,-4976.03869721,0.00020548,2]
[422337020,1778844645000,-495.92,0.000206,2]
[422337022,1778844645000,-762.0,0.00020785,7]
[422337023,1778844645000,-174.55,0.00020892,2]
[422337019,1778844645000,-2319.72410669,0.00020587,2]
[422337021,1778844645000,-285.34519104,0.00020704,2]
[422337018,1778844645000,-200.0,0.00020587,2]
[422337035,1778844645000,-308.0,0.00021,2]
[422337025,1778844645000,-880.0,0.00021,2]
[422337024,1778844645000,-1314.90232622,0.00021,2]
[422337027,1778844645000,-441.0,0.00021,2]
[422337028,1778844645000,-4524.0,0.00021,2]
[422337031,1778844645000,-985.0,0.00021,2]
[422337029,1778844645000,-4333.0,0.00021,2]
[422337030,1778844645000,-845.0,0.00021,2]
[422337034,1778844645000,-979.0,0.00021,2]
[422337033,1778844645000,-1192.0,0.00021,2]
[422337032,1778844645000,-2266.0,0.00021,2]
[422337036,1778844645000,-1452.0,0.00021,2]
[422337042,1778844645000,-10000.0,0.00021,2]
[422337047,1778844645000,-150.0,0.00021224,2]
[422337014,1778844645000,-432.58351559,0.00020548,2]
[422337065,1778844645000,-4524.0,0.00022,2]
[422337070,1778844645000,-2266.0,0.00022,2]
[422337093,1778844645000,-300.0,0.00022648,2]
[422337094,1778844645000,-300.0,0.00022648,2]
[422337098,1778844645000,-300.0,0.00022648,2]
[422337108,1778844645000,-695.39793187,0.00022777,2]
[422337100,1778844645000,-154.0,0.00022648,2]
[422337099,1778844645000,-300.0,0.00022648,2]
[422337097,1778844645000,-300.0,0.00022648,2]
[422337101,1778844645000,-598.34116443,0.00022657,2]
[422337103,1778844645000,-1270.0,0.00022738,2]
[422337102,1778844645000,-495.92,0.000227,7]
[422337104,1778844645000,-1223.0,0.00022738,2]
[422337105,1778844645000,-625.0,0.00022738,2]
[422337106,1778844645000,-3542.0,0.00022738,2]
[422337107,1778844645000,-621.78829552,0.00022777,2]
[422337109,1778844645000,-200.0,0.00022779,2]
[422337110,1778844645000,-2682.57183977,0.00022779,2]
[422337111,1778844645000,-2000.0,0.00022884,2]
[422337112,1778844645000,-2000.0,0.00022884,2]
[422337117,1778844645000,-2000.0,0.00022884,2]
[422337113,1778844645000,-2000.0,0.00022884,2]
[422337114,1778844645000,-2000.0,0.00022884,2]
[422337116,1778844645000,-2000.0,0.00022884,2]
[422337115,1778844645000,-2000.0,0.00022884,2]
[422337092,1778844645000,-300.0,0.00022648,2]
[422337088,1778844645000,-600.0,0.0002257,2]
[422337072,1778844645000,-979.0,0.00022,2]
[422337096,1778844645000,-300.0,0.00022648,2]
[422337091,1778844645000,-1013.0,0.00022648,2]
[422337067,1778844645000,-845.0,0.00022,2]
[422337069,1778844645000,-985.0,0.00022,2]
[422337068,1778844645000,-450.0,0.00022,2]
[422337071,1778844645000,-1192.0,0.00022,2]
[422337066,1778844645000,-4333.0,0.00022,2]
[422337085,1778844645000,-500.0,0.0002246,2]
[422337075,1778844645000,-367.0,0.00022,2]
[422337074,1778844645000,-1452.0,0.00022,2]
[422337084,1778844645000,-206.8907977,0.00022407,2]
[422337076,1778844645000,-243.593692,0.0002211,2]
[422337073,1778844645000,-308.0,0.00022,2]
[422337079,1778844645000,-1928.3,0.00022353,2]
[422337082,1778844645000,-575.79016016,0.00022407,2]
[422337078,1778844645000,-2586.85809042,0.00022231,2]
[422337081,1778844645000,-575.79016016,0.00022407,2]
[422337080,1778844645000,-575.79016019,0.00022407,2]
[422337083,1778844645000,-206.8907977,0.00022407,2]
[422337086,1778844645000,-701.53,0.00022466,2]
[422337095,1778844645000,-300.0,0.00022648,2]
[422337087,1778844645000,-692.45,0.00022466,2]
[422337090,1778844645000,-150.0,0.00022603,2]
[422337077,1778844645000,-200.0,0.00022231,2]
[422337089,1778844645000,-150.0,0.0002257,7]
[422337164,1778844646000,-1550.0,0.00023133,2]
[422337160,1778844646000,-1550.0,0.00023133,2]
[422337157,1778844646000,-158.0,0.00023,30]
[422337155,1778844646000,-158.0,0.00023,30]
[422337146,1778844646000,-387.0,0.00023,7]
[422337149,1778844646000,-151.0,0.00023,30]
[422337148,1778844646000,-151.0,0.00023,30]
[422337151,1778844646000,-151.0,0.00023,30]
[422337145,1778844646000,-367.0,0.00023,2]
[422337165,1778844646000,-1550.0,0.00023133,2]
[422337153,1778844646000,-158.0,0.00023,30]
[422337156,1778844646000,-158.0,0.00023,30]
[422337169,1778844646000,-1097.0,0.00023133,2]
[422337159,1778844646000,-158.0,0.00023,30]
[422337161,1778844646000,-1550.0,0.00023133,2]
[422337162,1778844646000,-1550.0,0.00023133,2]
[422337158,1778844646000,-158.0,0.00023,30]
[422337167,1778844646000,-1550.0,0.00023133,2]
[422337177,1778844646000,-250.0,0.00023596,2]
[422337176,1778844646000,-250.0,0.00023596,2]
[422337166,1778844646000,-1550.0,0.00023133,2]
[422337168,1778844646000,-1550.0,0.00023133,2]
[422337171,1778844646000,-353.79608579,0.00023288,2]
[422337152,1778844646000,-172.0,0.00023,7]
[422337172,1778844646000,-200.0,0.00023327,2]
[422337163,1778844646000,-1550.0,0.00023133,2]
[422337147,1778844646000,-151.0,0.00023,30]
[422337133,1778844646000,-200.0,0.00023,30]
[422337143,1778844646000,-308.0,0.00023,2]
[422337118,1778844646000,-2000.0,0.00022884,2]
[422337119,1778844646000,-2000.0,0.00022884,2]
[422337121,1778844646000,-2000.0,0.00022884,2]
[422337175,1778844646000,-250.0,0.00023596,2]
[422337123,1778844646000,-2000.0,0.00022884,2]
[422337122,1778844646000,-2000.0,0.00022884,2]
[422337125,1778844646000,-2000.0,0.00022884,2]
[422337129,1778844646000,-2000.0,0.00022884,2]
[422337124,1778844646000,-2000.0,0.00022884,2]
[422337126,1778844646000,-2000.0,0.00022884,2]
[422337130,1778844646000,-2000.0,0.00022884,2]
[422337127,1778844646000,-2000.0,0.00022884,2]
[422337150,1778844646000,-151.0,0.00023,30]
[422337128,1778844646000,-2000.0,0.00022884,2]
[422337132,1778844646000,-190.0,0.00023,2]
[422337134,1778844646000,-441.0,0.00023,2]
[422337142,1778844646000,-979.0,0.00023,2]
[422337135,1778844646000,-4524.0,0.00023,2]
[422337138,1778844646000,-845.0,0.00023,2]
[422337140,1778844646000,-2266.0,0.00023,2]
[422337137,1778844646000,-4333.0,0.00023,2]
[422337136,1778844646000,-363.0,0.00023,30]
[422337141,1778844646000,-1192.0,0.00023,2]
[422337139,1778844646000,-985.0,0.00023,2]
[422337144,1778844646000,-1452.0,0.00023,2]
[422337154,1778844646000,-158.0,0.00023,30]
[422337131,1778844646000,-880.0,0.00023,2]
[422337120,1778844646000,-2000.0,0.00022884,2]
[422337173,1778844646000,-2781.82699784,0.00023327,2]
[422337174,1778844646000,-250.0,0.00023596,2]
[422337212,1778844646000,-2266.0,0.00024,2]
[422337216,1778844646000,-1452.0,0.00024,2]
[422337214,1778844646000,-979.0,0.00024,2]
[422337215,1778844646000,-308.0,0.00024,2]
[422337213,1778844646000,-1192.0,0.00024,2]
[422337217,1778844646000,-367.0,0.00024,2]
[422337226,1778844646000,-1493.91,0.00024174,2]
[422337227,1778844646000,-3752.8838473,0.0002421,2]
[422337240,1778844646000,-200.0,0.00024423,2]
[422337237,1778844646000,-150.0,0.00024224,2]
[422337239,1778844646000,-152.0,0.00024382,3]
[422337238,1778844646000,-1928.3,0.00024324,2]
[422337210,1778844646000,-500.0,0.00024,2]
[422337236,1778844646000,-150.0,0.00024224,2]
[422337230,1778844646000,-150.0,0.00024224,2]
[422337224,1778844646000,-779.1,0.00024174,2]
[422337233,1778844646000,-150.0,0.00024224,2]
[422337242,1778844646000,-160.28,0.00024614,2]
[422337244,1778844646000,-171.13,0.00024617,30]
[422337243,1778844646000,-171.12,0.00024617,30]
[422337241,1778844646000,-2991.49051684,0.00024423,2]
[422337246,1778844646000,-605.52,0.00024658,2]
[422337170,1778844646000,-387.0,0.00023288,7]
[422337245,1778844646000,-1000.0,0.00024658,2]
[422337249,1778844646000,-1307.67,0.00024658,2]
[422337247,1778844646000,-150.00000001,0.00024658,2]
[422337232,1778844646000,-150.0,0.00024224,2]
[422337211,1778844646000,-985.0,0.00024,2]
[422337248,1778844646000,-1614.06,0.00024658,2]
[422337222,1778844646000,-172.0,0.00024164,7]
[422337208,1778844646000,-4333.0,0.00024,2]
[422337178,1778844646000,-250.0,0.00023596,2]
[422337187,1778844646000,-850.0,0.00023646,2]
[422337189,1778844646000,-850.0,0.00023646,2]
[422337191,1778844646000,-850.0,0.00023646,2]
[422337192,1778844646000,-850.0,0.00023646,2]
[422337194,1778844646000,-850.0,0.00023646,2]
[422337195,1778844646000,-850.0,0.00023646,2]
[422337184,1778844646000,-250.0,0.00023596,2]
[422337182,1778844646000,-250.0,0.00023596,2]
[422337186,1778844646000,-313.0,0.00023596,2]
[422337193,1778844646000,-850.0,0.00023646,2]
[422337196,1778844646000,-850.0,0.00023646,2]
[422337180,1778844646000,-250.0,0.00023596,2]
[422337198,1778844646000,-561.0,0.00023646,2]
[422337199,1778844646000,-15879.41,0.00023831,2]
[422337206,1778844646000,-441.0,0.00024,2]
[422337202,1778844646000,-2884.75459676,0.00023875,2]
[422337201,1778844646000,-200.0,0.00023875,2]
[422337204,1778844646000,-880.0,0.00024,2]
[422337209,1778844646000,-845.0,0.00024,2]
[422337203,1778844646000,-150.0,0.00023973,2]
[422337207,1778844646000,-4524.0,0.00024,2]
[422337200,1778844646000,-315.10850841,0.0002384,2]
[422337197,1778844646000,-850.0,0.00023646,2]
[422337205,1778844646000,-190.0,0.00024,2]
[422337220,1778844646000,-387.0,0.00024164,7]
[422337276,1778844647000,-391.0,0.00025373,7]
[422337285,1778844647000,-572.26,0.00025396,2]
[422337284,1778844647000,-570.02,0.00025396,2]
[422337282,1778844647000,-572.26,0.00025396,2]
[422337280,1778844647000,-572.26,0.00025396,2]
[422337287,1778844647000,-640.47,0.00025403,2]
[422337281,1778844647000,-570.02,0.00025396,2]
[422337278,1778844647000,-570.02,0.00025396,2]
[422337277,1778844647000,-572.26,0.00025396,2]
[422337279,1778844647000,-572.26,0.00025396,2]
[422337291,1778844647000,-393.98,0.00025403,2]
[422337289,1778844647000,-572.26,0.00025403,2]
[422337299,1778844647000,-572.26,0.00025403,2]
[422337288,1778844647000,-570.02,0.00025403,2]
[422337290,1778844647000,-570.02,0.00025403,2]
[422337293,1778844647000,-572.26,0.00025403,2]
[422337292,1778844647000,-188.73,0.00025403,2]
[422337298,1778844647000,-570.02,0.00025403,2]
[422337297,1778844647000,-640.47,0.00025403,2]
[422337295,1778844647000,-572.26,0.00025403,2]
[422337275,1778844647000,-150.0,0.00025342,2]
[422337283,1778844647000,-570.02,0.00025396,2]
[422337272,1778844647000,-377.0,0.00025,2]
[422337260,1778844647000,-192.0,0.00025,2]
[422337274,1778844647000,-1639.81,0.00025234,2]
[422337296,1778844647000,-299.06,0.00025403,2]
[422337252,1778844647000,-500.0,0.00024785,5]
[422337253,1778844647000,-920.32500696,0.00024895,21]
[422337250,1778844647000,-1639.81,0.00024658,2]
[422337251,1778844647000,-495.92,0.000247,7]
[422337254,1778844647000,-160.55621559,0.00024895,21]
[422337255,1778844647000,-1614.06,0.00024946,7]
[422337256,1778844647000,-1639.81,0.00024946,7]
[422337257,1778844647000,-2058.87116568,0.0002499,2]
[422337259,1778844647000,-892.0,0.00025,2]
[422337273,1778844647000,-1614.06,0.00025234,2]
[422337258,1778844647000,-6482.9741656,0.00025,7]
[422337263,1778844647000,-4333.69718259,0.00025,2]
[422337264,1778844647000,-862.0,0.00025,2]
[422337262,1778844647000,-4538.88622569,0.00025,2]
[422337266,1778844647000,-2280.52333138,0.00025,2]
[422337265,1778844647000,-989.0,0.00025,2]
[422337267,1778844647000,-1193.0,0.00025,2]
[422337269,1778844647000,-310.0,0.00025,2]
[422337271,1778844647000,-999.66087397,0.00025,2]
[422337270,1778844647000,-1459.29170773,0.00025,2]
[422337268,1778844647000,-993.0,0.00025,2]
[422337261,1778844647000,-456.0,0.00025,2]
[422337294,1778844647000,-570.02,0.00025403,2]
[422337286,1778844647000,-572.26,0.00025403,2]
[422337311,1778844647000,-640.47,0.00025403,2]
[422337325,1778844647000,-393.98,0.00025403,2]
[422337328,1778844647000,-582.17,0.00025403,2]
[422337334,1778844647000,-570.02,0.00025403,2]
[422337333,1778844647000,-572.26,0.00025403,2]
[422337331,1778844647000,-572.26,0.00025403,2]
[422337330,1778844647000,-570.02,0.00025403,2]